[Event "Late-Titled-Tuesday-Blitz-October-03-2023"]
[Site "Chess.com"]
[Date "2023.10.03"]
[Round "6"]
[White "C_K_G"]
[Black "K_alena13"]
[Result "0-1"]
[WhiteElo "1899"]
[BlackElo "2116"]
[TimeControl "180+1"]
[EndTime "15:04:17 PDT"]
[Termination "K_alena13 won on time"]

1. e4 {[%clk 0:02:45]} 1... e5 {[%clk 0:02:59.3]} 2. Nf3 {[%clk 0:02:45]} 2...
Nc6 {[%clk 0:02:59.2]} 3. Bc4 {[%clk 0:02:44.5]} 3... Nf6 {[%clk 0:02:58.5]} 4.
Ng5 {[%clk 0:02:43.3]} 4... d5 {[%clk 0:02:57.8]} 5. exd5 {[%clk 0:02:42.8]}
5... Na5 {[%clk 0:02:58.4]} 6. Bb5+ {[%clk 0:02:42.6]} 6... c6 {[%clk
0:02:58.6]} 7. dxc6 {[%clk 0:02:42.9]} 7... bxc6 {[%clk 0:02:59.5]} 8. Qf3
{[%clk 0:02:42.6]} 8... Bb7 {[%clk 0:02:27.3]} 9. Ba4 {[%clk 0:02:35.5]} 9...
Qd4 {[%clk 0:01:50.4]} 10. Nc3 {[%clk 0:02:30.4]} 10... h6 {[%clk 0:01:44.6]}
11. Nge4 {[%clk 0:02:00.6]} 11... Nxe4 {[%clk 0:01:41.5]} 12. Qxe4 {[%clk
0:01:53.5]} 12... Qxe4+ {[%clk 0:01:40.3]} 13. Nxe4 {[%clk 0:01:53.6]} 13...
O-O-O {[%clk 0:01:35.1]} 14. d3 {[%clk 0:01:47.6]} 14... f5 {[%clk 0:01:24]} 15.
Ng3 {[%clk 0:01:46]} 15... c5 {[%clk 0:01:04.3]} 16. Nxf5 {[%clk 0:01:36.9]}
16... Bxg2 {[%clk 0:00:58.2]} 17. Rg1 {[%clk 0:01:35.5]} 17... Bb7 {[%clk
0:00:54.5]} 18. Nxg7 {[%clk 0:01:09.2]} 18... Rg8 {[%clk 0:00:49.7]} 19. Bxh6
{[%clk 0:01:07.6]} 19... Rd6 {[%clk 0:00:48.2]} 20. Bd2 {[%clk 0:00:39.7]} 20...
Nc6 {[%clk 0:00:40.5]} 21. O-O-O {[%clk 0:00:21]} 21... Rxg7 {[%clk 0:00:35.7]}
22. Rxg7 {[%clk 0:00:19.8]} 22... Bxg7 {[%clk 0:00:36.6]} 23. Rg1 {[%clk
0:00:19.3]} 23... Bf6 {[%clk 0:00:30.7]} 24. Rg8+ {[%clk 0:00:16.8]} 24... Kc7
{[%clk 0:00:29.2]} 25. Rf8 {[%clk 0:00:15.2]} 25... Bg7 {[%clk 0:00:19.7]} 26.
Rf7+ {[%clk 0:00:14.1]} 26... Rd7 {[%clk 0:00:20]} 27. Rf5 {[%clk 0:00:13.8]}
27... Re7 {[%clk 0:00:15.5]} 28. h4 {[%clk 0:00:12.5]} 28... Nd4 {[%clk
0:00:14.2]} 29. Rh5 {[%clk 0:00:11.6]} 29... Kd6 {[%clk 0:00:11.1]} 30. Be3
{[%clk 0:00:09.3]} 30... Rf7 {[%clk 0:00:09.8]} 31. c3 {[%clk 0:00:07.9]} 31...
Ne2+ {[%clk 0:00:09.1]} 32. Kd2 {[%clk 0:00:07.4]} 32... Nf4 {[%clk 0:00:09.7]}
33. Rh7 {[%clk 0:00:05.8]} 33... Ne6 {[%clk 0:00:07]} 34. Bb3 {[%clk 0:00:05]}
34... Re7 {[%clk 0:00:05.5]} 35. h5 {[%clk 0:00:04.4]} 35... Bf6 {[%clk
0:00:04.3]} 36. Rh6 {[%clk 0:00:03.6]} 36... Rf7 {[%clk 0:00:03.8]} 37. Rg6
{[%clk 0:00:02.6]} 37... Bd5 {[%clk 0:00:03.1]} 0-1

[Event "Late-Titled-Tuesday-Blitz-October-03-2023"]
[Site "Chess.com"]
[Date "2023.10.03"]
[Round "6"]
[White "Mykola-Bortnyk"]
[Black "Beca95"]
[Result "0-1"]
[WhiteElo "2946"]
[BlackElo "3011"]
[TimeControl "180+1"]
[EndTime "15:04:18 PDT"]
[Termination "Beca95 won by resignation"]

1. e4 {[%clk 0:02:51.1]} 1... e5 {[%clk 0:03:00.1]} 2. Nf3 {[%clk 0:02:50.6]}
2... Nf6 {[%clk 0:03:00.5]} 3. Nxe5 {[%clk 0:02:50.7]} 3... d6 {[%clk
0:03:00.9]} 4. Nxf7 {[%clk 0:02:51.3]} 4... Kxf7 {[%clk 0:03:00.8]} 5. d4 {[%clk
0:02:51.9]} 5... c5 {[%clk 0:03:00.8]} 6. Nc3 {[%clk 0:02:52.2]} 6... cxd4
{[%clk 0:02:55.4]} 7. Bc4+ {[%clk 0:02:52.2]} 7... Be6 {[%clk 0:02:53.1]} 8.
Bxe6+ {[%clk 0:02:52.5]} 8... Kxe6 {[%clk 0:02:53.7]} 9. Qxd4 {[%clk 0:02:53.2]}
9... Nc6 {[%clk 0:02:53.7]} 10. Qc4+ {[%clk 0:02:53.6]} 10... Kd7 {[%clk
0:02:53.9]} 11. Bf4 {[%clk 0:02:54.3]} 11... Qe8 {[%clk 0:02:50]} 12. O-O-O
{[%clk 0:02:49.5]} 12... Qe6 {[%clk 0:02:44.1]} 13. Qb5 {[%clk 0:02:44.2]} 13...
Kc8 {[%clk 0:02:34.2]} 14. Rhe1 {[%clk 0:02:31.1]} 14... Be7 {[%clk 0:02:32.8]}
15. Nd5 {[%clk 0:02:31.6]} 15... Rd8 {[%clk 0:02:31.4]} 16. f3 {[%clk
0:02:24.9]} 16... Qf7 {[%clk 0:02:18.4]} 17. Bg3 {[%clk 0:02:08.3]} 17... Rd7
{[%clk 0:02:05]} 18. Rd3 {[%clk 0:02:02]} 18... Nxd5 {[%clk 0:01:55.7]} 19. exd5
{[%clk 0:01:58.3]} 19... a6 {[%clk 0:01:56]} 20. Qc4 {[%clk 0:01:44.1]} 20...
Kb8 {[%clk 0:01:39.2]} 21. Rc3 {[%clk 0:01:44]} 21... Na7 {[%clk 0:01:35.2]} 22.
a4 {[%clk 0:01:39.5]} 22... Bf6 {[%clk 0:01:27.7]} 23. Re8+ {[%clk 0:01:27.4]}
23... Bd8 {[%clk 0:01:17.1]} 24. Rh8 {[%clk 0:01:12.1]} 24... b5 {[%clk
0:01:07.5]} 25. Qd4 {[%clk 0:01:06.3]} 25... Kb7 {[%clk 0:01:04.7]} 26. Bf2
{[%clk 0:00:46.7]} 26... Qf6 {[%clk 0:00:56.6]} 27. Qe3 {[%clk 0:00:33.7]} 27...
Ba5 {[%clk 0:00:29.1]} 28. Rxa8 {[%clk 0:00:22.2]} 28... Kxa8 {[%clk 0:00:30]}
29. Rd3 {[%clk 0:00:10.1]} 29... Re7 {[%clk 0:00:29.8]} 30. Qd4 {[%clk
0:00:08.4]} 30... Qxd4 {[%clk 0:00:29.1]} 31. Rxd4 {[%clk 0:00:08.6]} 31... Bb6
{[%clk 0:00:27.9]} 32. Bh4 {[%clk 0:00:07.4]} 32... Bxd4 {[%clk 0:00:24.6]} 33.
Bxe7 {[%clk 0:00:07.3]} 33... Nc8 {[%clk 0:00:24.9]} 34. Bf8 {[%clk 0:00:06.6]}
34... bxa4 {[%clk 0:00:25.3]} 35. c3 {[%clk 0:00:07.4]} 35... Be5 {[%clk
0:00:25.4]} 36. g3 {[%clk 0:00:06.4]} 36... g5 {[%clk 0:00:24.4]} 37. Bh6 {[%clk
0:00:06.2]} 37... Bf6 {[%clk 0:00:23.3]} 38. Kc2 {[%clk 0:00:06.7]} 38... Nb6
{[%clk 0:00:23.4]} 39. Bf8 {[%clk 0:00:06.1]} 39... Nxd5 {[%clk 0:00:23.7]} 40.
Bxd6 {[%clk 0:00:06.2]} 40... Kb7 {[%clk 0:00:24.4]} 41. Kd3 {[%clk 0:00:06.5]}
41... Kc6 {[%clk 0:00:24.8]} 42. Bf8 {[%clk 0:00:07]} 42... Nb6 {[%clk
0:00:23.2]} 43. h3 {[%clk 0:00:05.9]} 43... Kd5 {[%clk 0:00:23.4]} 44. Kc2
{[%clk 0:00:03.2]} 44... Nc4 {[%clk 0:00:23.4]} 45. Bh6 {[%clk 0:00:03.4]} 45...
Ne3+ {[%clk 0:00:22.2]} 46. Kd3 {[%clk 0:00:04]} 46... Nf5 {[%clk 0:00:22.3]}
47. c4+ {[%clk 0:00:03.6]} 47... Ke6 {[%clk 0:00:21]} 48. Bf8 {[%clk 0:00:04]}
48... Nxg3 {[%clk 0:00:21.5]} 49. Ba3 {[%clk 0:00:03.4]} 49... Be5 {[%clk
0:00:20.8]} 50. c5 {[%clk 0:00:04]} 50... Kd5 {[%clk 0:00:21.1]} 51. c6 {[%clk
0:00:03.2]} 51... Kxc6 {[%clk 0:00:20.9]} 0-1

[Event "Late-Titled-Tuesday-Blitz-October-03-2023"]
[Site "Chess.com"]
[Date "2023.10.03"]
[Round "6"]
[White "TheMagician"]
[Black "adricalderon8"]
[Result "1-0"]
[WhiteElo "2232"]
[BlackElo "2473"]
[TimeControl "180+1"]
[EndTime "15:04:21 PDT"]
[Termination "TheMagician won by checkmate"]

1. d3 {[%clk 0:03:00.9]} 1... b6 {[%clk 0:02:59.6]} 2. c4 {[%clk 0:03:00.1]}
2... Bb7 {[%clk 0:02:59.9]} 3. Nc3 {[%clk 0:02:59.8]} 3... e6 {[%clk 0:02:59.1]}
4. Nf3 {[%clk 0:02:55.6]} 4... Nf6 {[%clk 0:02:59.4]} 5. g3 {[%clk 0:02:56]}
5... d5 {[%clk 0:02:59.5]} 6. Bg2 {[%clk 0:02:53.4]} 6... dxc4 {[%clk
0:02:59.1]} 7. Qa4+ {[%clk 0:02:52.5]} 7... Qd7 {[%clk 0:02:55.3]} 8. Qxc4
{[%clk 0:02:49.8]} 8... Nc6 {[%clk 0:02:49.1]} 9. Bg5 {[%clk 0:02:45.1]} 9...
Be7 {[%clk 0:02:48.3]} 10. Bxf6 {[%clk 0:02:42.2]} 10... Bxf6 {[%clk 0:02:48]}
11. O-O {[%clk 0:02:42.6]} 11... O-O {[%clk 0:02:46.5]} 12. Rac1 {[%clk
0:02:40]} 12... Rac8 {[%clk 0:02:43.5]} 13. b4 {[%clk 0:02:38.4]} 13... Ne7
{[%clk 0:02:39.8]} 14. Ne5 {[%clk 0:02:33]} 14... Bxe5 {[%clk 0:02:39]} 15. Bxb7
{[%clk 0:02:32.3]} 15... Rb8 {[%clk 0:02:35.5]} 16. Bg2 {[%clk 0:02:25.9]} 16...
c5 {[%clk 0:02:31.8]} 17. bxc5 {[%clk 0:02:20.8]} 17... Rfc8 {[%clk 0:02:32]}
18. Ne4 {[%clk 0:02:11.9]} 18... Bd4 {[%clk 0:02:18.7]} 19. c6 {[%clk
0:01:54.9]} 19... Nxc6 {[%clk 0:02:13.2]} 20. Nf6+ {[%clk 0:01:51.8]} 20... gxf6
{[%clk 0:02:06.4]} 21. Bxc6 {[%clk 0:01:51.6]} 21... Qd6 {[%clk 0:02:06.6]} 22.
e3 {[%clk 0:01:48.1]} 22... Be5 {[%clk 0:02:01]} 23. d4 {[%clk 0:01:47.1]} 23...
b5 {[%clk 0:01:55.7]} 24. dxe5 {[%clk 0:01:41.7]} 24... fxe5 {[%clk 0:01:50.5]}
25. Qg4+ {[%clk 0:01:38.2]} 25... Kh8 {[%clk 0:01:50.5]} 26. Bg2 {[%clk
0:01:31.4]} 26... b4 {[%clk 0:01:50.5]} 27. Qg5 {[%clk 0:01:28]} 27... a5 {[%clk
0:01:44.2]} 28. Qf6+ {[%clk 0:01:26.8]} 28... Kg8 {[%clk 0:01:44.5]} 29. Rcd1
{[%clk 0:01:23.2]} 29... Qc5 {[%clk 0:01:41.1]} 30. Rd7 {[%clk 0:01:20.9]} 30...
Qf8 {[%clk 0:01:41]} 31. Bf3 {[%clk 0:01:13.9]} 31... Rd8 {[%clk 0:01:38.2]} 32.
Ra7 {[%clk 0:01:11.1]} 32... Qg7 {[%clk 0:01:25.5]} 33. Qxg7+ {[%clk 0:01:07.8]}
33... Kxg7 {[%clk 0:01:26.4]} 34. Rxa5 {[%clk 0:01:07.7]} 34... Kg6 {[%clk
0:01:26.3]} 35. Rxe5 {[%clk 0:01:05.2]} 35... Rd2 {[%clk 0:01:23]} 36. Ra1
{[%clk 0:00:58.3]} 36... Rc8 {[%clk 0:01:21.9]} 37. Rb5 {[%clk 0:00:55.3]} 37...
Rcc2 {[%clk 0:01:22]} 38. Rf1 {[%clk 0:00:55.1]} 38... Rb2 {[%clk 0:01:21.3]}
39. g4 {[%clk 0:00:43.9]} 39... h6 {[%clk 0:01:18.8]} 40. h4 {[%clk 0:00:43.6]}
40... f5 {[%clk 0:01:17.2]} 41. Rb6 {[%clk 0:00:39.2]} 41... Kf6 {[%clk
0:01:16]} 42. gxf5 {[%clk 0:00:38.6]} 42... Kxf5 {[%clk 0:01:16.4]} 43. Kg2
{[%clk 0:00:36.8]} 43... Rd3 {[%clk 0:01:06.6]} 44. Kg3 {[%clk 0:00:33.2]} 44...
Rd8 {[%clk 0:01:05.9]} 45. Rc1 {[%clk 0:00:30.9]} 45... Rg8+ {[%clk 0:01:04.6]}
46. Kh3 {[%clk 0:00:31.1]} 46... Rxf2 {[%clk 0:01:04.6]} 47. Rc5+ {[%clk
0:00:30.8]} 47... Kf6 {[%clk 0:01:04.5]} 48. Bg4 {[%clk 0:00:29.3]} 48... Re8
{[%clk 0:01:04.6]} 49. Rcc6 {[%clk 0:00:28.8]} 49... h5 {[%clk 0:01:04]} 50.
Rxe6+ {[%clk 0:00:28.6]} 50... Rxe6 {[%clk 0:01:03.2]} 51. Bxe6 {[%clk 0:00:29]}
51... Rf3+ {[%clk 0:01:03.1]} 52. Kg2 {[%clk 0:00:28.2]} 52... Rxe3 {[%clk
0:01:03.8]} 53. Bb3+ {[%clk 0:00:28.4]} 53... Kf5 {[%clk 0:01:00.9]} 54. Rxb4
{[%clk 0:00:28.6]} 54... Re2+ {[%clk 0:01:01.4]} 55. Kf3 {[%clk 0:00:28.5]}
55... Rh2 {[%clk 0:01:02]} 56. Rb5+ {[%clk 0:00:28.7]} 56... Kg6 {[%clk
0:01:02]} 57. Kg3 {[%clk 0:00:29.4]} 57... Rd2 {[%clk 0:01:00.8]} 58. Bc4 {[%clk
0:00:29.3]} 58... Kh6 {[%clk 0:00:59.2]} 59. Rc5 {[%clk 0:00:29.4]} 59... Rc2
{[%clk 0:00:58.8]} 60. a4 {[%clk 0:00:29.4]} 60... Rc3+ {[%clk 0:00:59]} 61. Kf4
{[%clk 0:00:29]} 61... Rh3 {[%clk 0:00:59.1]} 62. Rc6+ {[%clk 0:00:29.5]} 62...
Kg7 {[%clk 0:00:58.6]} 63. Kg5 {[%clk 0:00:30.1]} 63... Rg3+ {[%clk 0:00:58.6]}
64. Kxh5 {[%clk 0:00:30.3]} 64... Kh8 {[%clk 0:00:56]} 65. a5 {[%clk 0:00:30.2]}
65... Ra3 {[%clk 0:00:55.4]} 66. a6 {[%clk 0:00:28.6]} 66... Ra5+ {[%clk
0:00:55.5]} 67. Kg4 {[%clk 0:00:24.4]} 67... Ra4 {[%clk 0:00:54.3]} 68. h5
{[%clk 0:00:23.2]} 68... Kg7 {[%clk 0:00:52.4]} 69. h6+ {[%clk 0:00:23.2]} 69...
Kh8 {[%clk 0:00:52.6]} 70. Kf3 {[%clk 0:00:23.1]} 70... Kh7 {[%clk 0:00:52.8]}
71. Bd3+ {[%clk 0:00:22.6]} 71... Kh8 {[%clk 0:00:52.4]} 72. Rc8# {[%clk
0:00:22.6]} 1-0

[Event "Late-Titled-Tuesday-Blitz-October-03-2023"]
[Site "Chess.com"]
[Date "2023.10.03"]
[Round "6"]
[White "GAusal"]
[Black "Bodhanas"]
[Result "0-1"]
[WhiteElo "2270"]
[BlackElo "2152"]
[TimeControl "180+1"]
[EndTime "15:04:21 PDT"]
[Termination "Bodhanas won by resignation"]

1. d4 {[%clk 0:03:00.9]} 1... Nf6 {[%clk 0:02:57.8]} 2. Nf3 {[%clk 0:03:00.2]}
2... g6 {[%clk 0:02:57.7]} 3. c4 {[%clk 0:02:59.5]} 3... Bg7 {[%clk 0:02:56.3]}
4. Nc3 {[%clk 0:02:59.4]} 4... b6 {[%clk 0:02:54.4]} 5. g3 {[%clk 0:02:58.6]}
5... Bb7 {[%clk 0:02:54]} 6. Bg2 {[%clk 0:02:58.9]} 6... O-O {[%clk 0:02:52.4]}
7. O-O {[%clk 0:02:58.9]} 7... d6 {[%clk 0:02:51.9]} 8. Rb1 {[%clk 0:02:57.3]}
8... Nbd7 {[%clk 0:02:51]} 9. h4 {[%clk 0:02:54.4]} 9... h5 {[%clk 0:02:47.5]}
10. Ng5 {[%clk 0:02:53.6]} 10... Bxg2 {[%clk 0:02:44.4]} 11. Kxg2 {[%clk
0:02:53.3]} 11... e5 {[%clk 0:02:42.4]} 12. d5 {[%clk 0:02:47.9]} 12... Re8
{[%clk 0:02:37.1]} 13. Nge4 {[%clk 0:02:45.4]} 13... Nxe4 {[%clk 0:02:32.8]} 14.
Nxe4 {[%clk 0:02:44.2]} 14... Nc5 {[%clk 0:02:25.6]} 15. Nxc5 {[%clk 0:02:38.6]}
15... bxc5 {[%clk 0:02:22.6]} 16. e4 {[%clk 0:02:38.5]} 16... Qd7 {[%clk
0:02:17.8]} 17. Qe2 {[%clk 0:02:32.1]} 17... f5 {[%clk 0:02:10.9]} 18. exf5
{[%clk 0:02:25.6]} 18... Qxf5 {[%clk 0:02:09.8]} 19. Bg5 {[%clk 0:02:20.9]}
19... e4 {[%clk 0:02:00.5]} 20. Rbe1 {[%clk 0:02:14.4]} 20... Rab8 {[%clk
0:01:56.8]} 21. b3 {[%clk 0:02:14.6]} 21... a5 {[%clk 0:01:41.7]} 22. f3 {[%clk
0:01:56.5]} 22... exf3+ {[%clk 0:01:37.6]} 23. Qxf3 {[%clk 0:01:54.5]} 23...
Qxf3+ {[%clk 0:01:26.7]} 24. Kxf3 {[%clk 0:01:53.5]} 24... Be5 {[%clk 0:01:24]}
25. Kg2 {[%clk 0:01:47.4]} 25... a4 {[%clk 0:01:16.8]} 26. Rf3 {[%clk
0:01:46.9]} 26... axb3 {[%clk 0:01:14.8]} 27. axb3 {[%clk 0:01:44.5]} 27... Rf8
{[%clk 0:01:14]} 28. Ref1 {[%clk 0:01:40]} 28... Rxf3 {[%clk 0:01:03.7]} 29.
Rxf3 {[%clk 0:01:37.6]} 29... Bd4 {[%clk 0:01:02.6]} 30. Kh3 {[%clk 0:01:33.3]}
30... Re8 {[%clk 0:00:59.8]} 31. Bh6 {[%clk 0:01:21.1]} 31... Bg7 {[%clk
0:00:51.2]} 32. Bxg7 {[%clk 0:01:16.2]} 32... Kxg7 {[%clk 0:00:51.1]} 33. g4
{[%clk 0:01:16.6]} 33... Re4 {[%clk 0:00:46.4]} 34. gxh5 {[%clk 0:01:11.7]}
34... gxh5 {[%clk 0:00:44.2]} 35. Rg3+ {[%clk 0:01:08.5]} 35... Kf6 {[%clk
0:00:40.7]} 36. Rf3+ {[%clk 0:01:07.6]} 36... Ke5 {[%clk 0:00:33.4]} 37. Rg3
{[%clk 0:00:55.4]} 37... Kd4 {[%clk 0:00:31]} 38. Rg5 {[%clk 0:00:53.3]} 38...
Re3+ {[%clk 0:00:31.2]} 39. Kg2 {[%clk 0:00:51.2]} 39... Rxb3 {[%clk 0:00:30.7]}
40. Rxh5 {[%clk 0:00:51.1]} 40... Kxc4 {[%clk 0:00:31.2]} 41. Rg5 {[%clk
0:00:49.8]} 41... Kd4 {[%clk 0:00:27.1]} 42. h5 {[%clk 0:00:49.8]} 42... Rb8
{[%clk 0:00:27.1]} 43. Kg3 {[%clk 0:00:44.3]} 43... c4 {[%clk 0:00:26.4]} 44.
Kf3 {[%clk 0:00:42.5]} 44... Kd3 {[%clk 0:00:25.5]} 45. Kg4 {[%clk 0:00:35.8]}
45... c3 {[%clk 0:00:24.7]} 46. Rg7 {[%clk 0:00:35.2]} 46... Rc8 {[%clk
0:00:20.6]} 47. Kf5 {[%clk 0:00:25.8]} 47... c2 {[%clk 0:00:19.7]} 48. Rg1
{[%clk 0:00:24.8]} 48... Kd2 {[%clk 0:00:19.8]} 49. Rg2+ {[%clk 0:00:23.9]}
49... Kd3 {[%clk 0:00:17.4]} 50. Rg3+ {[%clk 0:00:24.1]} 50... Kd4 {[%clk
0:00:15.6]} 51. Rg1 {[%clk 0:00:20.5]} 51... Kxd5 {[%clk 0:00:15.6]} 52. Kg6
{[%clk 0:00:20.6]} 52... Rg8+ {[%clk 0:00:14.9]} 53. Kf7 {[%clk 0:00:17.9]}
53... Rxg1 {[%clk 0:00:15.3]} 0-1

[Event "Late-Titled-Tuesday-Blitz-October-03-2023"]
[Site "Chess.com"]
[Date "2023.10.03"]
[Round "6"]
[White "Doudou2015"]
[Black "DrawDenied-Twitch"]
[Result "1-0"]
[WhiteElo "2163"]
[BlackElo "2883"]
[TimeControl "180+1"]
[EndTime "15:04:27 PDT"]
[Termination "Doudou2015 won on time"]

1. b3 {[%clk 0:02:44.6]} 1... d5 {[%clk 0:02:57.2]} 2. Bb2 {[%clk 0:02:45.5]}
2... Nf6 {[%clk 0:02:56.8]} 3. e3 {[%clk 0:02:45.8]} 3... Bf5 {[%clk 0:02:56.3]}
4. f4 {[%clk 0:02:45.4]} 4... e6 {[%clk 0:02:56.1]} 5. Nf3 {[%clk 0:02:44.7]}
5... h6 {[%clk 0:02:55.7]} 6. Ne5 {[%clk 0:02:44.9]} 6... Nbd7 {[%clk
0:02:54.3]} 7. d3 {[%clk 0:02:42.7]} 7... Bd6 {[%clk 0:02:50.9]} 8. Be2 {[%clk
0:02:42.6]} 8... Bh7 {[%clk 0:02:47.1]} 9. O-O {[%clk 0:02:41.1]} 9... O-O
{[%clk 0:02:46.3]} 10. Bf3 {[%clk 0:02:36.8]} 10... c6 {[%clk 0:02:44.2]} 11.
Nd2 {[%clk 0:02:30.9]} 11... Qc7 {[%clk 0:02:41.2]} 12. Nxd7 {[%clk 0:02:27.5]}
12... Nxd7 {[%clk 0:02:41.9]} 13. Qe1 {[%clk 0:02:21.6]} 13... e5 {[%clk
0:02:38.5]} 14. Qg3 {[%clk 0:02:13.8]} 14... f6 {[%clk 0:02:37]} 15. Bg4 {[%clk
0:01:50.7]} 15... Rae8 {[%clk 0:02:14.6]} 16. Kh1 {[%clk 0:01:27.3]} 16... Kh8
{[%clk 0:01:54.9]} 17. Bh5 {[%clk 0:01:26.8]} 17... Rd8 {[%clk 0:01:29.8]} 18.
Rae1 {[%clk 0:01:21.7]} 18... Qa5 {[%clk 0:01:19.3]} 19. Nf3 {[%clk 0:00:52.1]}
19... Qxa2 {[%clk 0:01:06.9]} 20. Rb1 {[%clk 0:00:51.7]} 20... exf4 {[%clk
0:00:42.3]} 21. exf4 {[%clk 0:00:52.6]} 21... Qa5 {[%clk 0:00:42]} 22. Nh4
{[%clk 0:00:46.8]} 22... Qc7 {[%clk 0:00:27.6]} 23. Bg6 {[%clk 0:00:42.9]} 23...
Bg8 {[%clk 0:00:20.2]} 24. Bf5 {[%clk 0:00:40.4]} 24... Bf7 {[%clk 0:00:15.6]}
25. Bg6 {[%clk 0:00:39]} 25... Nc5 {[%clk 0:00:12.5]} 26. b4 {[%clk 0:00:34.4]}
26... Na4 {[%clk 0:00:11.7]} 27. Ba1 {[%clk 0:00:32.9]} 27... Be6 {[%clk
0:00:10.3]} 28. Bf5 {[%clk 0:00:31.8]} 28... Bf7 {[%clk 0:00:10]} 29. Bg6 {[%clk
0:00:32]} 29... Kg8 {[%clk 0:00:09.7]} 30. Bf5 {[%clk 0:00:20.5]} 30... Nb6
{[%clk 0:00:06.2]} 31. Bxf6 {[%clk 0:00:19.3]} 31... Bh5 {[%clk 0:00:04.7]} 32.
Bxd8 {[%clk 0:00:18.1]} 32... Rxd8 {[%clk 0:00:05.6]} 33. Bg6 {[%clk 0:00:16.5]}
33... Bxg6 {[%clk 0:00:04.9]} 34. Qxg6 {[%clk 0:00:16.1]} 34... Qf7 {[%clk
0:00:04.6]} 35. Qg4 {[%clk 0:00:15.7]} 35... Nd7 {[%clk 0:00:03.8]} 36. Nf5
{[%clk 0:00:15.7]} 36... Qf6 {[%clk 0:00:03.2]} 37. Nxd6 {[%clk 0:00:14.1]}
37... Qxd6 {[%clk 0:00:03]} 38. Rfe1 {[%clk 0:00:13.3]} 38... Nf6 {[%clk
0:00:03.1]} 39. Qg6 {[%clk 0:00:12.6]} 39... Rd7 {[%clk 0:00:02]} 40. Re5 {[%clk
0:00:10.6]} 40... Qf8 {[%clk 0:00:01.8]} 41. Rbe1 {[%clk 0:00:10.3]} 41... Rf7
{[%clk 0:00:02.7]} 42. Re6 {[%clk 0:00:09.6]} 42... Qxb4 {[%clk 0:00:02.2]} 43.
g4 {[%clk 0:00:08.1]} 43... Qxf4 {[%clk 0:00:01.5]} 44. Re8+ {[%clk 0:00:06.3]}
1-0

[Event "Late-Titled-Tuesday-Blitz-October-03-2023"]
[Site "Chess.com"]
[Date "2023.10.03"]
[Round "6"]
[White "BardArtem"]
[Black "GoltsevDmitry2000"]
[Result "1-0"]
[WhiteElo "2783"]
[BlackElo "2682"]
[TimeControl "180+1"]
[EndTime "15:04:28 PDT"]
[Termination "BardArtem won on time"]

1. e4 {[%clk 0:03:00.9]} 1... e6 {[%clk 0:03:00]} 2. d4 {[%clk 0:02:55.8]} 2...
d5 {[%clk 0:02:59.9]} 3. Nc3 {[%clk 0:02:56.2]} 3... c5 {[%clk 0:03:00]} 4. exd5
{[%clk 0:02:55.1]} 4... exd5 {[%clk 0:03:00.1]} 5. dxc5 {[%clk 0:02:55.5]} 5...
Nf6 {[%clk 0:02:59.8]} 6. Be3 {[%clk 0:02:54.4]} 6... Nc6 {[%clk 0:02:59.5]} 7.
Nf3 {[%clk 0:02:53.2]} 7... Be7 {[%clk 0:02:58.4]} 8. h3 {[%clk 0:02:47.9]} 8...
O-O {[%clk 0:02:57.7]} 9. Be2 {[%clk 0:02:44.5]} 9... Bf5 {[%clk 0:02:57.3]} 10.
O-O {[%clk 0:02:43.3]} 10... h6 {[%clk 0:02:55.7]} 11. a3 {[%clk 0:02:40.3]}
11... a6 {[%clk 0:02:51]} 12. b4 {[%clk 0:02:37.3]} 12... Re8 {[%clk 0:02:46.6]}
13. Nd4 {[%clk 0:02:35.2]} 13... Bg6 {[%clk 0:02:41.1]} 14. Nxc6 {[%clk
0:02:32.5]} 14... bxc6 {[%clk 0:02:41.3]} 15. Bd4 {[%clk 0:02:32.3]} 15... Nd7
{[%clk 0:02:38.5]} 16. Bd3 {[%clk 0:02:25]} 16... Nf8 {[%clk 0:02:22.1]} 17. Re1
{[%clk 0:02:16.5]} 17... Qd7 {[%clk 0:02:14.5]} 18. Na4 {[%clk 0:02:02.4]} 18...
Qb7 {[%clk 0:01:47.3]} 19. Nb6 {[%clk 0:01:54.5]} 19... Rad8 {[%clk 0:01:45.1]}
20. Qf3 {[%clk 0:01:23.9]} 20... Bxd3 {[%clk 0:01:15.7]} 21. cxd3 {[%clk
0:01:19.1]} 21... Ne6 {[%clk 0:01:12.3]} 22. Bb2 {[%clk 0:01:18.3]} 22... Bf8
{[%clk 0:00:15.2]} 23. Qg4 {[%clk 0:01:01.4]} 23... Qb8 {[%clk 0:00:14]} 24. Re5
{[%clk 0:00:53.1]} 24... d4 {[%clk 0:00:13]} 25. Rae1 {[%clk 0:00:48]} 25... g6
{[%clk 0:00:08.5]} 26. Nc4 {[%clk 0:00:27.2]} 26... Bg7 {[%clk 0:00:08.7]} 27.
R5e2 {[%clk 0:00:21.7]} 27... Rf8 {[%clk 0:00:08.7]} 28. Nd6 {[%clk 0:00:15.6]}
28... Nxc5 {[%clk 0:00:09]} 29. bxc5 {[%clk 0:00:10.7]} 29... Qb3 {[%clk
0:00:08.5]} 30. Qf3 {[%clk 0:00:08]} 30... Rb8 {[%clk 0:00:05.9]} 31. Nc4 {[%clk
0:00:08]} 31... Qb5 {[%clk 0:00:04.3]} 32. a4 {[%clk 0:00:07]} 32... Qxc5 {[%clk
0:00:04.7]} 33. Ba3 {[%clk 0:00:07.4]} 33... Qg5 {[%clk 0:00:03.3]} 34. Bxf8
{[%clk 0:00:07.7]} 34... Rxf8 {[%clk 0:00:04.2]} 35. Qxc6 {[%clk 0:00:08]} 35...
Qf5 {[%clk 0:00:04.1]} 36. Qe4 {[%clk 0:00:06.8]} 36... Qd7 {[%clk 0:00:04.6]}
37. Ne5 {[%clk 0:00:06]} 37... Qxa4 {[%clk 0:00:04.6]} 38. Qc6 {[%clk
0:00:04.2]} 38... Qb3 {[%clk 0:00:03]} 39. Nd7 {[%clk 0:00:04.5]} 39... Rd8
{[%clk 0:00:01.9]} 40. Re8+ {[%clk 0:00:04.7]} 40... Rxe8 {[%clk 0:00:02.1]} 41.
Rxe8+ {[%clk 0:00:05.6]} 41... Kh7 {[%clk 0:00:03]} 42. Nf8+ {[%clk 0:00:05.3]}
42... Bxf8 {[%clk 0:00:02.4]} 43. Rxf8 {[%clk 0:00:05.2]} 43... a5 {[%clk
0:00:02]} 44. Qf6 {[%clk 0:00:04.6]} 44... Qb1+ {[%clk 0:00:01.3]} 45. Kh2
{[%clk 0:00:03.9]} 45... Qb8+ {[%clk 0:00:02.2]} 46. Rxb8 {[%clk 0:00:04.3]} 1-0